[Event "30th Cracovia Festival-A 2019"]
[Site "Krakow"]
[Date "2019.12.30"]
[Round "5.12"]
[White "Niedbala, Bartlomiej"]
[Black "Webersberger, Johann"]
[Result "1/2-1/2"]
[ECO "E06"]
[WhiteElo "2239"]
[BlackElo "2358"]
[Annotator "NA"]
[PlyCount "35"]
[EventDate "2019.12.27"]
[EventCountry "POL"]
[SourceTitle "playchess.com"]
[Source "ChessBase"]
[SourceQuality "1"]
[TimeControl "40/5400+30:1800+30"]

1. d4 {[%emt 0:00:00]} Nf6 {[%emt 0:00:00]} 2. c4 {[%emt 0:00:00]} e6 {[%emt 0:00:00]} 3. g3 {[%emt 0:00:25]} d5 {[%emt 0:00:09]} 4. Nf3 {[%emt 0:00:03]} Be7 {[%emt 0:00:13]} 5. Bg2 {[%emt 0:00:05]} O-O {[%emt 0:00:10]} 6. O-O {[%emt 0:00:03]} dxc4 {[%emt 0:00:44]} 7. Qc2 {[%emt 0:04:19]} a6 {[%emt 0:02:53]} 8. a4 {[%emt 0:00:08]} Bd7 {[%emt 0:01:26]} 9. Qxc4 {[%emt 0:00:05]} Bc6 {[%emt 0:00:08]} 10. Bg5 {[%emt 0:00:02]} Nbd7 {[%emt 0:00:51]} 11. Nc3 {[%emt 0:01:35]} a5 {[%emt 0:10:47]} 12. Rfe1 {[%emt 0:06:54]} Bxf3 {[%emt 0:04:58]} 13. Bxf3 {[%emt 0:02:47]} c6 {[%emt 0:00:05]} 14. Rad1 {[%emt 0:03:55]} Qb6 {[%emt 0:05:36]} 15. e4 {[%emt 0:05:37]} Rfe8 {[%emt 0:00:23]} 16. Bc1 {[%emt 0:14:56]} Rad8 {[%emt 0:08:50]} 17. Qf1 {[%emt 0:08:14]} e5 {[%emt 0:04:29]} 18. d5 {[%emt 0:05:06]} 1/2-1/2

[Event "30th Cracovia Festival-A 2019"]
[Site "Krakow"]
[Date "2019.12.30"]
[Round "5.14"]
[White "Belous, Mikhail"]
[Black "Grabowski, Pawel"]
[Result "1-0"]
[ECO "E80"]
[WhiteElo "2349"]
[BlackElo "2281"]
[Annotator "NA"]
[PlyCount "45"]
[EventDate "2019.12.27"]
[EventCountry "POL"]
[SourceTitle "playchess.com"]
[Source "ChessBase"]
[SourceQuality "1"]
[TimeControl "40/5400+30:1800+30"]

1. d4 {[%emt 0:00:00]} Nf6 {[%emt 0:00:57]} 2. c4 {[%emt 0:00:00]} g6 {[%emt 0:00:18]} 3. f3 {[%emt 0:00:00]} Bg7 {[%emt 0:00:16]} 4. e4 {[%emt 0:00:00]} d6 {[%emt 0:00:32]} 5. Nc3 {[%emt 0:00:07]} c6 {[%emt 0:00:41]} 6. Be3 {[%emt 0:00:32]} a6 {[%emt 0:00:29]} 7. e5 {[%emt 0:01:41]} Nfd7 {[%emt 0:05:43]} 8. exd6 {[%emt 0:00:20]} exd6 {[%emt 0:00:26]} 9. Qd2 {[%emt 0:00:23]} O-O {[%emt 0:01:29]} 10. O-O-O {[%emt 0:00:26]} b5 {[%emt 0:01:31]} 11. Bh6 {[%emt 0:00:42]} Qa5 {[%emt 0:09:03]} 12. Kb1 {[%emt 0:21:54]} bxc4 {[%emt 0:08:52]} 13. d5 {[%emt 0:14:46]} Nc5 {[%emt 0:11:03]} 14. g4 {[%emt 0:08:04]} Nd3 {[%emt 0:09:51]} 15. Bxd3 {[%emt 0:03:32]} cxd3 {[%emt 0:00:36]} 16. h4 {[%emt 0:02:15]} Bxh6 {[%emt 0:14:21]} 17. Qxh6 {[%emt 0:00:07]} cxd5 {[%emt 0:02:22]} 18. h5 {[%emt 0:05:10]} Ra7 {[%emt 0:00:34]} 19. Nh3 {[%emt 0:00:51]} Qd8 {[%emt 0:05:40]} 20. Nxd5 {[%emt 0:02:48]} f6 {[%emt 0:03:57]} 21. hxg6 {[%emt 0:01:23]} Rg7 {[%emt 0:07:35]} 22. Nhf4 {[%emt 0:00:42]} Nc6 {[%emt 0:00:53]} 23. Qxg7+ {[%emt 0:14:10]} 1-0

[Event "30th Cracovia Festival-A 2019"]
[Site "Krakow"]
[Date "2019.12.30"]
[Round "5.15"]
[White "Kyc, Jerzy"]
[Black "Bugalski, Michal"]
[Result "1-0"]
[ECO "C60"]
[WhiteElo "2340"]
[BlackElo "2241"]
[Annotator "NA RC"]
[PlyCount "79"]
[EventDate "2019.12.27"]
[EventCountry "POL"]
[SourceTitle "playchess.com"]
[Source "ChessBase"]
[SourceQuality "1"]
[TimeControl "40/5400+30:1800+30"]

1. e4 {[%emt 0:00:00]} e5 {[%emt 0:00:00]} 2. Nf3 {[%emt 0:00:00]} Nc6 {[%emt 0:00:00]} 3. Bb5 {[%emt 0:00:00]} Nge7 {[%emt 0:00:00]} 4. c3 {[%emt 0:00:00]} d5 {[%emt 0:00:14]} 5. Nxe5 {[%emt 0:07:43]} dxe4 {[%emt 0:00:09]} 6. d4 {[%emt 0:02:11]} exd3 {[%emt 0:12:03]} 7. Qf3 {[%emt 0:08:57]} Be6 {[%emt 0:00:36]} 8. O-O {[%emt 0:09:10]} Qd5 {[%emt 0:03:05]} 9. Qxd5 {[%emt 0:08:07]} Bxd5 {[%emt 0:00:07]} 10. Nxc6 {[%emt 0:07:30]} Bxc6 {[%emt 0:06:06]} 11. Bxd3 {[%emt 0:03:46]} O-O-O {[%emt 0:00:15]} 12. Bc2 {[%emt 0:00:16]} Ng6 {[%emt 0:00:44]} 13. Be3 {[%emt 0:01:46]} Bd6 {[%emt 0:05:47]} 14. Nd2 {[%emt 0:12:46]} Rhe8 {[%emt 0:06:11]} 15. Nc4 {[%emt 0:02:41]} Be7 {[%emt 0:04:40]} 16. Rfd1 {[%emt 0:06:10]} Rd5 {[%emt 0:03:03]} 17. g3 {[%emt 0:03:51]} Red8 {[%emt 0:01:25]} 18. Bd4 {[%emt 0:02:00]} Rh5 {[%emt 0:19:45]} 19. Re1 {[%emt 0:05:58]} Bf6 {[%emt 0:02:43]} 20. Bd1 {[%emt 0:01:49]} Rg5 {[%emt 0:04:37]} 21. Be3 {[%emt 0:01:56]} Rgd5 {[%emt 0:21:27]} 22. Bf3 {[%emt 0:00:56]} Rd3 {[%emt 0:05:46]} 23. Bxc6 {[%emt 0:00:26]} bxc6 {[%emt 0:00:01]} 24. Bxa7 {[%emt 0:00:16]} h5 {[%emt 0:00:15]} 25. Be3 {[%emt 0:00:36]} h4 {[%emt 0:00:07]} 26. Kg2 {[%emt 0:00:13]} Ne7 {[%emt 0:00:25]} 27. Bd4 {[%emt 0:03:23]} Bxd4 {[%emt 0:03:22]} 28. Rxe7 {[%emt 0:00:04]} Bf6 {[%emt 0:00:05]} 29. Rxf7 {[%emt 0:02:49]} Rh8 {[%emt 0:00:01]} 30. a4 {[%emt 0:00:37]} h3+ {[%emt 0:00:05]} 31. Kf1 {[%emt 0:00:10]} Rhd8 {[%emt 0:01:19]} 32. Ke2 {[%emt 0:00:46]} R3d5 {[%emt 0:00:13]} 33. a5 {[%emt 0:00:49]} Re8+ {[%emt 0:00:36]} 34. Kf1 {[%emt 0:00:22]} Rc5 {[%emt 0:01:00]} 35. Ne3 {[%emt 0:03:32]} Kb7 {[%emt 0:00:31]} 36. a6+ {[%emt 0:00:47]} Kb6 {[%emt 0:00:01]} 37. Ra4 {[%emt 0:00:33]} Ra8 {[%emt 0:01:05]} 38. Nc4+ {[%emt 0:00:27]} Kb5 {[%emt 0:00:07]} 39. Rb4+ {[%emt 0:00:13]} Kxa6 {[%emt 0:00:07]} 40. Rxc7 {[%emt 0:00:00]} 1-0

[Event "30th Cracovia Festival-A 2019"]
[Site "Krakow"]
[Date "2019.12.30"]
[Round "5.16"]
[White "Jankowiak, Tomasz"]
[Black "Mis, Mieszko"]
[Result "0-1"]
[ECO "B52"]
[WhiteElo "2111"]
[BlackElo "2320"]
[Annotator "NA"]
[PlyCount "70"]
[EventDate "2019.12.27"]
[EventCountry "POL"]
[SourceTitle "playchess.com"]
[Source "ChessBase"]
[SourceQuality "1"]
[TimeControl "40/5400+30:1800+30"]

1. e4 c5 2. Nf3 d6 3. Bb5+ Bd7 4. Bxd7+ Qxd7 5. c4 Nf6 6. Nc3 g6 7. d4 cxd4 8. Nxd4 Bg7 9. f3 O-O 10. Be3 Nc6 11. O-O Rac8 12. b3 a6 13. a4 e6 14. Rc1 Qe7 15. Re1 Nb4 16. Qd2 d5 17. cxd5 exd5 18. Bg5 dxe4 19. Nxe4 Nxe4 20. Rxe4 Rxc1+ 21. Qxc1 Qd7 22. Qd2 f5 23. Nxf5 Qxf5 24. Rxb4 Re8 25. Be3 b5 26. axb5 axb5 27. Bd4 Rd8 28. Qc3 Bf8 29. Qc7 Rc8 30. Qb7 Qe6 31. Kf2 g5 32. Rxb5 Rc2+ 33. Kg3 Bd6+ 34. f4 Bxf4+ 35. Kf3 Qe2# 0-1

[Event "30th Cracovia Festival-A 2019"]
[Site "Krakow"]
[Date "2019.12.30"]
[Round "5.17"]
[White "Marszalek, Maciej"]
[Black "Milikow, Yoav"]
[Result "1/2-1/2"]
[ECO "D78"]
[WhiteElo "2314"]
[BlackElo "2236"]
[Annotator "NA"]
[PlyCount "28"]
[EventDate "2019.12.27"]
[EventCountry "POL"]
[SourceTitle "playchess.com"]
[Source "ChessBase"]
[SourceQuality "1"]
[TimeControl "40/5400+30:1800+30"]

1. d4 {[%emt 0:00:00]} Nf6 {[%emt 0:00:30]} 2. c4 {[%emt 0:00:00]} g6 {[%emt 0:00:06]} 3. Nf3 {[%emt 0:01:00]} Bg7 {[%emt 0:00:13]} 4. g3 {[%emt 0:00:04]} c6 {[%emt 0:00:40]} 5. Bg2 {[%emt 0:01:45]} d5 {[%emt 0:00:39]} 6. O-O {[%emt 0:00:25]} O-O {[%emt 0:00:29]} 7. Ne5 {[%emt 0:00:48]} dxc4 {[%emt 0:01:05]} 8. Na3 {[%emt 0:00:30]} Ng4 {[%emt 0:05:24]} 9. Naxc4 {[%emt 0:00:50]} Nxe5 {[%emt 0:08:56]} 10. Nxe5 {[%emt 0:01:15]} Nd7 {[%emt 0:06:44]} 11. Nc4 {[%emt 0:00:36]} Nb6 {[%emt 0:01:17]} 12. Ne5 {[%emt 0:00:51]} Nd7 {[%emt 0:02:49]} 13. Nc4 {[%emt 0:00:47]} Nb6 {[%emt 0:00:06]} 14. Ne5 {[%emt 0:00:05]} Nd7 {[%emt 0:02:58]} 1/2-1/2

[Event "30th Cracovia Festival-A 2019"]
[Site "Krakow"]
[Date "2019.12.30"]
[Round "5.18"]
[White "Goluch, Piotr"]
[Black "Brozyna, Mateusz"]
[Result "1-0"]
[ECO "D11"]
[WhiteElo "2415"]
[BlackElo "2188"]
[Annotator "NA"]
[PlyCount "49"]
[EventDate "2019.12.27"]
[EventCountry "POL"]
[SourceTitle "playchess.com"]
[Source "ChessBase"]
[SourceQuality "1"]
[TimeControl "40/5400+30:1800+30"]

1. d4 {[%emt 0:00:00]} d5 {[%emt 0:00:00]} 2. c4 {[%emt 0:00:00]} c6 {[%emt 0:00:00]} 3. Nf3 {[%emt 0:00:00]} Nf6 {[%emt 0:00:00]} 4. e3 {[%emt 0:00:00]} e6 {[%emt 0:00:00]} 5. b3 {[%emt 0:00:00]} Bd6 {[%emt 0:00:00]} 6. Bd3 {[%emt 0:00:04]} O-O {[%emt 0:00:05]} 7. O-O {[%emt 0:00:05]} b6 {[%emt 0:00:12]} 8. Bb2 {[%emt 0:01:40]} Bb7 {[%emt 0:02:11]} 9. Nbd2 {[%emt 0:05:42]} Nbd7 {[%emt 0:01:09]} 10. Ne5 {[%emt 0:02:21]} Qe7 {[%emt 0:02:11]} 11. Qc2 {[%emt 0:05:00]} h6 {[%emt 0:04:19]} 12. Nxd7 {[%emt 0:03:32]} Nxd7 {[%emt 0:06:53]} 13. e4 {[%emt 0:02:10]} dxe4 {[%emt 0:10:48]} 14. Nxe4 {[%emt 0:00:07]} Ba3 {[%emt 0:06:30]} 15. Bxa3 {[%emt 0:00:33]} Qxa3 {[%emt 0:00:03]} 16. c5 {[%emt 0:00:28]} Ba6 {[%emt 0:01:46]} 17. Bxa6 {[%emt 0:06:44]} Qxa6 {[%emt 0:00:31]} 18. Nd6 {[%emt 0:00:25]} bxc5 {[%emt 0:09:53]} 19. dxc5 {[%emt 0:00:03]} Qa3 {[%emt 0:01:08]} 20. Rac1 {[%emt 0:02:13]} Nf6 {[%emt 0:00:33]} 21. Rfd1 {[%emt 0:08:27]} a5 {[%emt 0:08:36]} 22. Rd4 {[%emt 0:06:56]} a4 {[%emt 0:00:24]} 23. b4 {[%emt 0:00:05]} Rab8 {[%emt 0:04:35]} 24. Qd2 {[%emt 0:00:24]} Nd5 {[%emt 0:04:51]} 25. Rcc4 {[%emt 0:01:51]} 1-0

[Event "30th Cracovia Festival-A 2019"]
[Site "Krakow"]
[Date "2019.12.30"]
[Round "5.19"]
[White "Lewtak, Damian"]
[Black "Antolak, Julia"]
[Result "1/2-1/2"]
[ECO "A00"]
[WhiteElo "2379"]
[BlackElo "2249"]
[Annotator "NA"]
[PlyCount "88"]
[EventDate "2019.12.27"]
[EventCountry "POL"]
[SourceTitle "playchess.com"]
[Source "ChessBase"]
[SourceQuality "1"]
[TimeControl "40/5400+30:1800+30"]

1. g3 {[%emt 0:00:00]} g6 {[%emt 0:00:00]} 2. Bg2 {[%emt 0:00:00]} Bg7 {[%emt 0:00:02]} 3. d3 {[%emt 0:00:33]} Nf6 {[%emt 0:00:26]} 4. e4 {[%emt 0:00:32]} d6 {[%emt 0:00:17]} 5. Ne2 {[%emt 0:00:14]} c5 {[%emt 0:01:56]} 6. O-O {[%emt 0:00:52]} O-O {[%emt 0:00:46]} 7. f4 {[%emt 0:00:34]} e6 {[%emt 0:00:32]} 8. h3 {[%emt 0:00:56]} Ne8 {[%emt 0:00:54]} 9. Nbc3 {[%emt 0:01:36]} Nc6 {[%emt 0:02:41]} 10. Be3 {[%emt 0:00:38]} Nd4 {[%emt 0:01:19]} 11. Qd2 {[%emt 0:00:07]} Rb8 {[%emt 0:03:34]} 12. Nd1 {[%emt 0:01:39]} b5 {[%emt 0:01:30]} 13. c3 {[%emt 0:01:03]} Nxe2+ {[%emt 0:00:05]} 14. Qxe2 {[%emt 0:00:03]} b4 {[%emt 0:00:41]} 15. c4 {[%emt 0:00:20]} Qc7 {[%emt 0:03:18]} 16. Nf2 {[%emt 0:00:37]} f5 {[%emt 0:04:47]} 17. exf5 {[%emt 0:05:20]} gxf5 {[%emt 0:01:47]} 18. g4 {[%emt 0:00:30]} e5 {[%emt 0:06:15]} 19. g5 {[%emt 0:01:25]} Bb7 {[%emt 0:02:45]} 20. Nh1 {[%emt 0:00:25]} Bxg2 {[%emt 0:09:26]} 21. Qxg2 {[%emt 0:00:38]} Qb7 {[%emt 0:00:16]} 22. Ng3 {[%emt 0:21:22]} exf4 {[%emt 0:04:49]} 23. Bxf4 {[%emt 0:09:07]} Bd4+ {[%emt 0:00:45]} 24. Kh2 {[%emt 0:00:10]} Qxg2+ {[%emt 0:00:03]} 25. Kxg2 {[%emt 0:00:04]} Bxb2 {[%emt 0:00:11]} 26. Rae1 {[%emt 0:00:04]} b3 {[%emt 0:01:20]} 27. axb3 {[%emt 0:01:51]} Rxb3 {[%emt 0:00:57]} 28. Rb1 {[%emt 0:20:00]} Rb6 {[%emt 0:12:26]} 29. Rf2 {[%emt 0:01:29]} Bc3 {[%emt 0:07:10]} 30. Rxb6 {[%emt 0:04:50]} axb6 {[%emt 0:00:08]} 31. Rc2 {[%emt 0:00:55]} Be5 {[%emt 0:01:50]} 32. Bxe5 {[%emt 0:00:18]} dxe5 {[%emt 0:00:06]} 33. Rb2 {[%emt 0:00:05]} Ng7 {[%emt 0:01:52]} 34. Rxb6 {[%emt 0:00:41]} Rd8 {[%emt 0:00:51]} 35. Rb3 {[%emt 0:01:28]} Kf7 {[%emt 0:02:17]} 36. h4 {[%emt 0:01:15]} Rd7 {[%emt 0:07:27]} 37. Ra3 {[%emt 0:02:52]} Ne6 {[%emt 0:06:46]} 38. Nxf5 {[%emt 0:00:22]} Kg6 {[%emt 0:02:00]} 39. Ng3 {[%emt 0:00:48]} Nf4+ {[%emt 0:00:34]} 40. Kf3 {[%emt 0:00:00]} Rxd3+ {[%emt 0:00:00]} 41. Rxd3 {[%emt 0:00:23]} Nxd3 {[%emt 0:01:05]} 42. Ke4 {[%emt 0:05:18]} Nb2 {[%emt 0:02:18]} 43. Kd5 {[%emt 0:00:06]} e4 {[%emt 0:01:37]} 44. Nxe4 {[%emt 0:02:21]} Kh5 {[%emt 0:00:56]} 1/2-1/2

[Event "30th Cracovia Festival-A 2019"]
[Site "Krakow"]
[Date "2019.12.30"]
[Round "5.20"]
[White "Sanz Wawer, Daniel"]
[Black "Nurkiewicz, Maciej"]
[Result "1/2-1/2"]
[ECO "E63"]
[WhiteElo "2212"]
[BlackElo "2340"]
[Annotator "NA"]
[PlyCount "65"]
[EventDate "2019.12.27"]
[EventCountry "POL"]
[SourceTitle "playchess.com"]
[Source "ChessBase"]
[SourceQuality "1"]
[TimeControl "40/5400+30:1800+30"]

1. d4 {[%emt 0:00:00]} Nf6 {[%emt 0:00:00]} 2. Nf3 {[%emt 0:00:00]} g6 {[%emt 0:02:05]} 3. g3 {[%emt 0:00:00]} Bg7 {[%emt 0:00:53]} 4. Bg2 {[%emt 0:00:02]} O-O {[%emt 0:00:06]} 5. O-O {[%emt 0:00:06]} d6 {[%emt 0:04:49]} 6. c4 {[%emt 0:00:08]} Nc6 {[%emt 0:00:35]} 7. Nc3 {[%emt 0:02:29]} a6 {[%emt 0:00:19]} 8. e4 {[%emt 0:03:26]} Rb8 {[%emt 0:00:14]} 9. Be3 {[%emt 0:08:36]} b5 {[%emt 0:02:23]} 10. cxb5 {[%emt 0:03:14]} axb5 {[%emt 0:00:08]} 11. a3 {[%emt 0:01:23]} b4 {[%emt 0:04:07]} 12. axb4 {[%emt 0:00:52]} Nxb4 {[%emt 0:00:11]} 13. Re1 {[%emt 0:03:28]} Ba6 {[%emt 0:02:45]} 14. Bf1 {[%emt 0:06:00]} Bxf1 {[%emt 0:00:08]} 15. Kxf1 {[%emt 0:01:06]} Nd7 {[%emt 0:01:20]} 16. Kg2 {[%emt 0:02:26]} c5 {[%emt 0:02:43]} 17. Qe2 {[%emt 0:05:26]} Qc7 {[%emt 0:04:35]} 18. Ra4 {[%emt 0:16:50]} Nb6 {[%emt 0:28:15]} 19. Raa1 {[%emt 0:02:36]} cxd4 {[%emt 0:07:10]} 20. Bxd4 {[%emt 0:03:08]} Qc4 {[%emt 0:01:33]} 21. Bxg7 {[%emt 0:02:16]} Kxg7 {[%emt 0:04:04]} 22. Ra7 {[%emt 0:06:55]} Rfe8 {[%emt 0:05:09]} 23. Qxc4 {[%emt 0:08:14]} Nxc4 {[%emt 0:00:44]} 24. b3 {[%emt 0:01:50]} Nc6 {[%emt 0:06:27]} 25. Rc7 {[%emt 0:00:06]} Rxb3 {[%emt 0:00:25]} 26. Nd5 {[%emt 0:01:01]} N4a5 {[%emt 0:00:20]} 27. e5 {[%emt 0:07:01]} dxe5 {[%emt 0:07:25]} 28. Nxe5 {[%emt 0:00:24]} Nxe5 {[%emt 0:02:12]} 29. Rxe5 {[%emt 0:00:05]} e6 {[%emt 0:00:09]} 30. Nf4 {[%emt 0:01:15]} Rb7 {[%emt 0:00:12]} 31. Rxe6 {[%emt 0:02:10]} Rxe6 {[%emt 0:00:14]} 32. Nxe6+ {[%emt 0:00:06]} Kf6 {[%emt 0:00:05]} 33. Rxb7 {[%emt 0:00:07]} 1/2-1/2

[Event "30th Cracovia Festival-A 2019"]
[Site "Krakow"]
[Date "2019.12.30"]
[Round "5.21"]
[White "Zylka, Stanislaw"]
[Black "Gbyl, Andrzej"]
[Result "1-0"]
[ECO "A45"]
[WhiteElo "2334"]
[BlackElo "2243"]
[Annotator "NA"]
[PlyCount "97"]
[EventDate "2019.12.27"]
[EventCountry "POL"]
[SourceTitle "playchess.com"]
[Source "ChessBase"]
[SourceQuality "1"]
[TimeControl "40/5400+30:1800+30"]

1. d4 {[%emt 0:00:00]} Nf6 {[%emt 0:00:00]} 2. Bg5 {[%emt 0:00:00]} c5 {[%emt 0:00:28]} 3. Bxf6 {[%emt 0:00:00]} gxf6 {[%emt 0:00:11]} 4. d5 {[%emt 0:00:00]} Qb6 {[%emt 0:01:17]} 5. Qc1 {[%emt 0:00:18]} d6 {[%emt 0:03:14]} 6. c4 {[%emt 0:00:28]} f5 {[%emt 0:05:55]} 7. Nc3 {[%emt 0:00:09]} Nd7 {[%emt 0:00:40]} 8. e3 {[%emt 0:00:36]} Bg7 {[%emt 0:02:06]} 9. Nf3 {[%emt 0:00:45]} Ne5 {[%emt 0:01:47]} 10. Nxe5 {[%emt 0:00:15]} Bxe5 {[%emt 0:00:06]} 11. Bd3 {[%emt 0:00:46]} Bd7 {[%emt 0:01:21]} 12. Rb1 {[%emt 0:01:51]} h5 {[%emt 0:05:16]} 13. h4 {[%emt 0:01:22]} O-O-O {[%emt 0:06:35]} 14. g3 {[%emt 0:00:42]} e6 {[%emt 0:02:12]} 15. Qc2 {[%emt 0:00:12]} Qa5 {[%emt 0:01:25]} 16. O-O {[%emt 0:06:28]} Rdg8 {[%emt 0:03:25]} 17. Kh1 {[%emt 0:02:22]} Bf6 {[%emt 0:02:16]} 18. b4 {[%emt 0:04:36]} cxb4 {[%emt 0:00:47]} 19. Nb5 {[%emt 0:00:15]} Bxb5 {[%emt 0:00:39]} 20. cxb5+ {[%emt 0:00:06]} Kb8 {[%emt 0:00:06]} 21. Qb3 {[%emt 0:06:59]} Qd8 {[%emt 0:31:46]} 22. dxe6 {[%emt 0:01:52]} fxe6 {[%emt 0:05:58]} 23. Qxe6 {[%emt 0:00:19]} f4 {[%emt 0:03:41]} 24. exf4 {[%emt 0:02:48]} Bxh4 {[%emt 0:00:11]} 25. Bf5 {[%emt 0:02:53]} Bxg3 {[%emt 0:13:38]} 26. fxg3 {[%emt 0:01:23]} Rxg3 {[%emt 0:00:04]} 27. Rb3 {[%emt 0:03:03]} Rhg8 {[%emt 0:04:09]} 28. Rxg3 {[%emt 0:01:01]} Rxg3 {[%emt 0:00:06]} 29. Kh2 {[%emt 0:00:41]} Rc3 {[%emt 0:01:01]} 30. Bh3 {[%emt 0:02:11]} a5 {[%emt 0:01:57]} 31. Rd1 {[%emt 0:09:04]} Rc2+ {[%emt 0:02:00]} 32. Kh1 {[%emt 0:00:08]} Qb6 {[%emt 0:00:43]} 33. Qxd6+ {[%emt 0:00:16]} Ka7 {[%emt 0:00:24]} 34. Qxb6+ {[%emt 0:00:42]} Kxb6 {[%emt 0:00:06]} 35. Be6 {[%emt 0:00:24]} Kxb5 {[%emt 0:00:15]} 36. Rf1 {[%emt 0:04:42]} Kc5 {[%emt 0:00:24]} 37. f5 {[%emt 0:00:10]} Kd6 {[%emt 0:00:13]} 38. Bb3 {[%emt 0:00:50]} Rc8 {[%emt 0:00:20]} 39. f6 {[%emt 0:00:18]} Rf8 {[%emt 0:00:35]} 40. Rf5 {[%emt 0:00:00]} a4 {[%emt 0:00:00]} 41. Bxa4 {[%emt 0:01:39]} Ke6 {[%emt 0:00:32]} 42. Rxh5 {[%emt 0:00:15]} Rxf6 {[%emt 0:00:23]} 43. Kg2 {[%emt 0:00:13]} Rf4 {[%emt 0:00:24]} 44. Rb5 {[%emt 0:00:22]} Kd6 {[%emt 0:00:04]} 45. Rxb7 {[%emt 0:01:26]} Kc5 {[%emt 0:00:06]} 46. Rc7+ {[%emt 0:00:41]} Kd4 {[%emt 0:00:07]} 47. Kg3 {[%emt 0:00:16]} Re4 {[%emt 0:00:17]} 48. Bb3 {[%emt 0:00:26]} Re3+ {[%emt 0:00:28]} 49. Kf2 {[%emt 0:00:10]} 1-0

[Event "30th Cracovia Festival-A 2019"]
[Site "Krakow"]
[Date "2019.12.30"]
[Round "5.22"]
[White "Renman, Nils-gustaf"]
[Black "Bus, Konrad"]
[Result "0-1"]
[ECO "D45"]
[WhiteElo "2319"]
[BlackElo "2214"]
[Annotator "NA"]
[PlyCount "56"]
[EventDate "2019.12.27"]
[EventCountry "POL"]
[SourceTitle "playchess.com"]
[Source "ChessBase"]
[SourceQuality "1"]
[TimeControl "40/5400+30:1800+30"]

1. d4 {[%emt 0:00:00]} Nf6 {[%emt 0:00:00]} 2. Nf3 {[%emt 0:00:00]} e6 {[%emt 0:00:00]} 3. c4 {[%emt 0:00:00]} d5 {[%emt 0:00:10]} 4. Nc3 {[%emt 0:00:26]} c6 {[%emt 0:00:19]} 5. e3 {[%emt 0:00:39]} a6 {[%emt 0:00:52]} 6. Bd3 {[%emt 0:01:45]} dxc4 {[%emt 0:01:05]} 7. Bxc4 {[%emt 0:00:07]} b5 {[%emt 0:00:36]} 8. Bd3 {[%emt 0:01:15]} c5 {[%emt 0:02:42]} 9. dxc5 {[%emt 0:06:04]} Bxc5 {[%emt 0:01:34]} 10. O-O {[%emt 0:00:15]} Bb7 {[%emt 0:00:54]} 11. e4 {[%emt 0:03:26]} Nc6 {[%emt 0:06:12]} 12. e5 {[%emt 0:06:25]} Nd7 {[%emt 0:08:07]} 13. Ne4 {[%emt 0:01:09]} Be7 {[%emt 0:12:24]} 14. Bf4 {[%emt 0:09:31]} h6 {[%emt 0:07:53]} 15. Rc1 {[%emt 0:11:32]} g5 {[%emt 0:04:28]} 16. Bg3 {[%emt 0:00:06]} g4 {[%emt 0:02:31]} 17. Rxc6 {[%emt 0:01:08]} Bxc6 {[%emt 0:06:43]} 18. Nd4 {[%emt 0:00:09]} Bd5 {[%emt 0:05:56]} 19. Qxg4 {[%emt 0:00:31]} Qb6 {[%emt 0:02:03]} 20. Bh4 {[%emt 0:05:44]} Nxe5 {[%emt 0:03:51]} 21. Qg7 {[%emt 0:02:51]} Qxd4 {[%emt 0:05:27]} 22. Qxh8+ {[%emt 0:01:56]} Kd7 {[%emt 0:00:09]} 23. Nf6+ {[%emt 0:04:20]} Bxf6 {[%emt 0:05:51]} 24. Qxf6 {[%emt 0:01:35]} Nf3+ {[%emt 0:00:07]} 25. Kh1 {[%emt 0:01:11]} Qxh4 {[%emt 0:00:39]} 26. Qxf7+ {[%emt 0:03:28]} Qe7 {[%emt 0:02:46]} 27. Qf4 {[%emt 0:01:09]} Nh4 {[%emt 0:04:05]} 28. f3 {[%emt 0:01:21]} Qg5 {[%emt 0:00:31]} 0-1

[Event "30th Cracovia Festival-A 2019"]
[Site "Krakow"]
[Date "2019.12.30"]
[Round "5.23"]
[White "Kasperek, Ryszard"]
[Black "Punin, Andrii"]
[Result "1/2-1/2"]
[ECO "B12"]
[WhiteElo "2197"]
[BlackElo "2311"]
[Annotator "NA"]
[PlyCount "57"]
[EventDate "2019.12.27"]
[EventCountry "POL"]
[SourceTitle "playchess.com"]
[Source "ChessBase"]
[SourceQuality "1"]
[TimeControl "40/5400+30:1800+30"]

1. e4 {[%emt 0:02:57]} c6 {[%emt 0:00:00]} 2. d4 {[%emt 0:00:22]} d5 {[%emt 0:00:00]} 3. e5 {[%emt 0:01:37]} Bf5 {[%emt 0:00:00]} 4. Nd2 {[%emt 0:00:28]} e6 {[%emt 0:00:00]} 5. Nb3 {[%emt 0:00:17]} Nd7 {[%emt 0:00:09]} 6. Nf3 {[%emt 0:01:03]} a6 {[%emt 0:00:09]} 7. Be2 {[%emt 0:05:36]} c5 {[%emt 0:00:17]} 8. dxc5 {[%emt 0:01:03]} Bxc5 {[%emt 0:00:09]} 9. Nxc5 {[%emt 0:14:19]} Nxc5 {[%emt 0:00:11]} 10. Nd4 {[%emt 0:00:39]} Bg6 {[%emt 0:09:06]} 11. O-O {[%emt 0:19:34]} Ne7 {[%emt 0:00:19]} 12. Be3 {[%emt 0:00:37]} Rc8 {[%emt 0:01:16]} 13. Rc1 {[%emt 0:11:19]} b5 {[%emt 0:03:53]} 14. b3 {[%emt 0:02:06]} O-O {[%emt 0:05:03]} 15. c4 {[%emt 0:02:13]} dxc4 {[%emt 0:00:26]} 16. bxc4 {[%emt 0:00:09]} b4 {[%emt 0:02:24]} 17. Qd2 {[%emt 0:18:58]} Qa5 {[%emt 0:15:05]} 18. Nb3 {[%emt 0:10:19]} Nxb3 {[%emt 0:00:14]} 19. axb3 {[%emt 0:00:01]} Qxe5 {[%emt 0:12:29]} 20. Bf4 {[%emt 0:00:18]} Qa5 {[%emt 0:08:42]} 21. Ra1 {[%emt 0:00:59]} Qb6 {[%emt 0:01:27]} 22. Qd6 {[%emt 0:00:12]} Qxd6 {[%emt 0:03:33]} 23. Bxd6 {[%emt 0:00:01]} Rfe8 {[%emt 0:00:10]} 24. c5 {[%emt 0:02:51]} Nf5 {[%emt 0:02:21]} 25. Bxa6 {[%emt 0:02:15]} Nxd6 {[%emt 0:00:07]} 26. cxd6 {[%emt 0:00:01]} Rc3 {[%emt 0:03:45]} 27. Bc4 {[%emt 0:02:31]} Rd8 {[%emt 0:00:51]} 28. Ra4 {[%emt 0:00:29]} Bd3 {[%emt 0:02:37]} 29. Bxd3 1/2-1/2